Cogmind - Beta 17 @@@ ROGUE MODE // 2026.07.08 @ 19:45:28 Player: IsAway Result: Destroyed by S-10 Pest with Light Assault Rifle Performance ------------- Evolutions (0) 0 Regions Visited (1) 200 Robots Destroyed (6) 30 Value Destroyed (147) 147 Prototype IDs (0) 0 Alien Tech Used (0) 0 Bonus (0) 0 TOTAL SCORE: 377 Bonus ------- None Cogmind --------- Core Integrity 0/250 Matter 283/300 Energy 125/125 System Corruption 5% Temperature Cool (0) Movement Flying (37) Location -10/Materials Parts ------- > --- POWER (1) -------- Light Ion Engine > --- PROPULSION (2) --- Flight Unit Flight Unit > --- UTILITY (2) ------ (None) > --- WEAPON (2) ------- Flail > --- INVENTORY (5) ---- Flight Unit Small Battery (100) Terrain Scanner Particle Gun Datajack Peak State ------------ > --- POWER ------------ Ion Engine > --- PROPULSION ------- Aluminum Leg Aluminum Leg > --- UTILITY ---------- Small Storage Unit > --- WEAPON ----------- Particle Gun Particle Gun > --- INVENTORY -------- Wheel [Rating: 8] Favorites ----------- Power Ion Engine Engine Ion Engine Propulsion Flight Unit Leg Aluminum Leg Wheel Compact Wheel Flight Unit Flight Unit Utility Small Storage Unit Device Seismic Detector Storage Small Storage Unit Weapon EM Pulse Gun Energy Gun EM Pulse Gun Ballistic Cannon Light Cannon Impact Weapon Flail Build | -11 -10 ------- Run | Yrd Mat Slots Evolved . | . . Power . | . . Propulsion . | . . Utility . | . . Weapon . | . . Parts Attached 16 | 6 10 Power 3 | 1 2 Engine 3 | 1 2 Core . | . . Reactor . | . . Propulsion 6 | 2 4 Treads . | . . Leg 2 | . 2 Wheel 2 | 2 . Hover . | . . Flight 2 | . 2 Utility 2 | 2 . Device 1 | 1 . Storage 1 | 1 . Processor . | . . Hackware . | . . Protection . | . . Artifact . | . . Weapon 5 | 1 4 Energy Gun 3 | 1 2 Energy Cannon . | . . Ballistic Gun . | . . Ballistic Cannon 1 | . 1 Launcher . | . . Special Weapon . | . . Impact Weapon 1 | . 1 Slashing Weapon . | . . Piercing Weapon . | . . Special Melee Weapon . | . . Unidentified Prototypes . | . . Corrupted Parts 1 | . 1 System Corruption 3 | . 3 Parts Lost 6 | . 6 Power 1 | . 1 Propulsion 2 | . 2 Utility 1 | . 1 Weapon 2 | . 2 Highest Loss Streak 6 | . 6 To Critical Strikes . | . . Average Backups 2 | . 2 Power . | . . Propulsion 1 | . 1 Utility . | . . Weapon . | . . Tool/Special . | . . Unused Backups 7 | . 7 Power . | . . Propulsion 4 | . 4 Utility 2 | . 2 Weapon . | . . Tool/Special 1 | . 1 Average Slot Usage (%) 60 | . 60 Engine 9 | . 9 Leg 3 | . 3 Wheel 7 | . 7 Flight 10 | . 10 Device 3 | . 3 Storage 11 | . 11 Energy Gun 9 | . 9 Ballistic Cannon 2 | . 2 Impact Weapon 2 | . 2 Peak Build Rating 8 | 6 8 Average Rating 4 | 4 4 On Entrance 3 | . 6 Avg Prop Armor Cover (%) . | . . Naked Turns . | . . Heaviest Build 16 | 13 16 Greatest Support 26 | 26 26 Greatest Overweight (x) 4 | . 4 Average Overweight (x) . | . . Largest Inventory Capacity 8 | 8 8 Average Capacity 7 | 7 7 Most Carried 8 | 1 8 Average Carried 2 | . 3 Final Capacity 8 | 8 5 Final Carried 5 | 1 5 Class Distribution -------------------- 100% | Mutant Dominant Class ---------------- Mutant | -10/Materials Resources | -11 -10 ----------- Run | Yrd Mat Matter Collected 388 | 150 238 Remotely . | . . Salvage Created 345 | 130 215 Parts 13 | 4 9 Haulers Intercepted . | . . Recyclers Shooed . | . . Parts Field Recycled . | . . Retrieved Matter . | . . Parts Self-Destructed . | . . Prevented . | . . Parts Restored . | . . Kills | -11 -10 ------- Run | Yrd Mat Combat Hostiles Destroyed 3 | . 3 Guns 2 | . 2 Cannons 1 | . 1 Classes Destroyed 3 | 2 1 Tunneler 1 | 1 . Recycler 2 | 1 1 Grunt 3 | . 3 Best Kill Streak 3 | 2 3 Combat Bots Only 2 | . 2 Max Kills in Single Turn 1 | 1 1 Gunslinging . | . . Exploded . | . . Melee . | . . Uniques/NPCs Destroyed . | . . Combat | -11 -10 -------- Run | Yrd Mat Hostile Shots Fired 72 | . 72 Missed 24 | . 24 Hits 48 | . 48 Projectile 48 | . 48 Critical Strikes 1 | . 1 Damage Taken 694 | . 694 Core 254 | . 254 Absorbed by Shields . | . . Core Remaining (%) 100 | 100 . Volleys Fired 45 | 20 25 Largest 2 | 1 2 Hottest 70 | 40 70 Shots Fired 58 | 20 38 Gun 45 | 20 25 Cannon 13 | . 13 Launcher . | . . Special . | . . Kinetic 13 | . 13 Thermal 6 | . 6 Explosive . | . . Electromagnetic 39 | 20 19 Robot Hit Streak 5 | 4 5 Robot Miss Streak 6 | 5 6 Penetration Max . | . . Secondary Targets . | . . Shots Hit Robots 32 | 10 22 Core Hits 13 | 3 10 Critical Kills . | . . Critical Parts Destroyed . | . . Critical Strikes 1 | . 1 Corrupt 1 | . 1 Melee Attacks 10 | . 10 Impact 10 | . 10 Slashing . | . . Piercing . | . . Sneak Attacks . | . . Combat Hostiles . | . . Follow-up Attacks . | . . Damage Inflicted 571 | 138 433 Guns 405 | 138 267 Cannons 135 | . 135 Explosions . | . . Melee . | . . Ramming 31 | . 31 Kinetic 135 | . 135 Thermal 62 | . 62 Explosive . | . . Electromagnetic 343 | 138 205 Impact . | . . Slashing . | . . Piercing . | . . Highest Corruption 5 | . 5 Average Corruption 4 | . 4 Corruption Purged . | . . Corruption Blocked . | . . Effects 4 | . 4 Matter Fused 2 | . 2 Energy Discharges 1 | . 1 Data Loss (major) 1 | . 1 Overload Shots . | . . Overflow Damage . | . . Projectiles . | . . Explosions . | . . Melee . | . . Knockbacks 5 | . 5 Impact 2 | . 2 Kinetic 3 | . 3 Secondary . | . . Self-Inflicted Damage 13 | . 13 Shots . | . . Rammed 15 | . 15 Targets Rammed 15 | . 15 Kicked . | . . Crushed . | . . Highest Temperature 239 | . 239 Average Temperature 139 | . 139 Received Heat Transfer 360 | . 360 Siege Activations . | . . Martial Activations . | . . Shielding Activations . | . . Robots Disrupted . | . . Combat Hostiles . | . . Robots Corrupted . | . . Combat Hostiles . | . . Parts Fried 6 | 3 3 Impact Corruptions . | . . Robots Melted . | . . Combat Hostiles . | . . Parts Melted . | . . Heat Transferred 148 | . 148 Parts Sabotaged . | . . Parts Stolen . | . . Parts Stripped . | . . Power Chain Reactions . | . . Alert | -11 -10 ------- Run | Yrd Mat Maximum Alert Level . | . . Low Security (%) 100 | 100 100 Level 1 . | . . Level 2 . | . . Level 3 . | . . Level 4 . | . . Level 5 . | . . High Security . | . . Max Security . | . . Peak Influence 47 | 10 47 Initial . | . . Average 7 | 1 9 Influence Increases 143 | 10 133 Destroy 0b10 Robot/C 60 | . 60 Destroy 0b10 Robot/NC 15 | 10 5 Destroy Leader 20 | . 20 Destroy Structure 3 | . 3 Lose Combat Pursuer 45 | . 45 Influence Decreases 106 | 10 96 Time Decay 71 | 10 61 Lost Part 35 | . 35 Squads Dispatched 1 | . 1 Investigation 1 | . 1 Extermination . | . . Reinforcement . | . . Assault . | . . Garrison . | . . Intercept . | . . Searches Triggered . | . . Construction Impeded . | . . Haulers Reinforced . | . . Active Scanning Responses . | . . Cargo Convoy Interrupts . | . . Stealth | -11 -10 --------- Run | Yrd Mat Distress Signals 3 | . 3 Communications Jammed . | . . Distress Signals . | . . Times Spotted 11 | . 11 Peak Tracking Total 5 | . 5 Tactical Retreats 1 | . 1 Traps | -11 -10 ------- Run | Yrd Mat Traps Triggered . | . . Indirectly . | . . Trap Hack Attempts . | . . Triggered . | . . Disarmed . | . . Reprogrammed . | . . Reused . | . . Traps Extracted . | . . Installed . | . . Triggered . | . . Machines | -11 -10 ---------- Run | Yrd Mat Machines Disabled . | . . Max in Single Turn . | . . Machines Repaired . | . . Machines Dismantled . | . . Machines Sabotaged . | . . Overloaded Fab Kills . | . . Hacking | -11 -10 --------- Run | Yrd Mat Machines Accessed . | . . Terminals . | . . Fabricators . | . . Repair Stations . | . . Recycling Units . | . . Scanalyzers . | . . Garrison Access . | . . Total Hacks . | . . Successful . | . . Failed . | . . Catastrophic . | . . Database Lockouts . | . . Manual . | . . Terminals . | . . Fabricators . | . . Repair Stations . | . . Recycling Units . | . . Scanalyzers . | . . Garrison Access . | . . Terminal Hacks . | . . Fabricator Hacks . | . . Repair Station Hacks . | . . Recycling Unit Hacks . | . . Scanalyzer . | . . Garrison Access Hacks . | . . Unauthorized Hacks . | . . Terminals . | . . Fabricators . | . . Repair Stations . | . . Recycling Units . | . . Scanalyzers . | . . Garrison Access . | . . Data Cores Recovered . | . . Used . | . . Hacking Detections . | . . Full Trace Events . | . . Feedback Events . | . . Feedback Blocked . | . . Robot Schematics Acquired . | . . Robots Built . | . . Authchips . | . . Time . | . . Total Robot Build Rating . | . . Part Schematics Acquired . | . . Parts Built . | . . Authchips . | . . Time . | . . Total Part Build Rating . | . . Part Studies Acquired . | . . Parts Repaired . | . . Time . | . . Parts Recycled . | . . Recycled Matter . | . . Retrieved Matter . | . . Retrieved Components . | . . Parts Scanalyzed . | . . Part Schematics Acquired . | . . Parts Damaged . | . . Bothacking | -11 -10 ------------ Run | Yrd Mat Used RIF Installer . | . . Robots Hacked . | . . Non-combat . | . . Combat . | . . Robot Hacks Applied . | . . Relay Couplers Released . | . . Fabnet Peak Effective % . | . . Robots Rewired . | . . Allies Hacked . | . . Hacks Repelled . | . . Allies | -11 -10 -------- Run | Yrd Mat Total Allies . | . . Largest Group . | . . Highest-Rated Group . | . . Highest-Rated Ally . | . . Total Orders . | . . Ally Attacks . | . . Total Damage . | . . Kills . | . . Allies Corrupted . | . . Allies Melted . | . . Intel | -11 -10 ------- Run | Yrd Mat Active Infowar (turns) 66 | 8 58 Seismic 66 | 8 58 Robot Analysis Total . | . . Derelict Logs Recovered . | . . Drone Launches . | . . Drone Recoveries . | . . Exploration | -11 -10 ------------- Run | Yrd Mat Turns Passed 351 | 88 263 Spaces Moved 267 | 44 223 Core 19 | 4 15 Treads . | . . Legs 20 | . 20 Wheels 62 | 40 22 Hover . | . . Flight 166 | . 166 Fastest Speed 37 | 50 37 Average Speed 61 | 86 57 Slowest Speed 250 | 90 250 Overloaded Moves . | . . Propulsion Burnouts . | . . Robots Hopped . | . . Potential Cave-ins 4 | . 4 Cave-ins Triggered 1 | . 1 Exploration Rate (%) 17 | 4 30 Regions Visited 1 Branch Regions . Pre-discovered Areas . | . . Known Exits Taken . | . . Unknown Exits Taken 1 | 1 . Scrap Searched . | . . Spaces Dug 8 | . 8 Terrain Destroyed 8 | . 8 Melee 8 | . 8 Projectile . | . . AOE . | . . Terrain Rammed . | . . Walls Destroyed . | . . Machines Disabled . | . . Actions | -11 -10 --------- Run | Yrd Mat Total 376 | 71 305 Wait 2 | . 2 Move 266 | 43 223 Hop . | . . Pick Up 11 | 2 9 Fast Attach 14 | 5 9 Attach 2 | 1 1 Detach . | . . Swap 1 | . 1 Drop 10 | . 10 Fire 45 | 20 25 Melee 10 | . 10 Ram 15 | . 15 Kick . | . . Crush . | . . Escape Stasis . | . . Rewire . | . . Trap . | . . Miscellaneous . | . . Route ------- -11/Scrapyard -10/Materials History --------- Turn | Location | Event 26 | -11/Scrapyard | Discovered new exit (range 15) 89 | -11/Scrapyard | Entered Materials 168 | -10/Materials | Core integrity fell below 50% 182 | -10/Materials | Core integrity fell below 20% 192 | -10/Materials | Lost 6 parts (1p2n1u2w) 308 | -10/Materials | Build established: Mutant 324 | -10/Materials | Crushed by falling debris 352 | -10/Materials | Destroyed by S-10 Pest with Light Assault Rifle Last Messages --------------- lost. T-07 Excavator is excavating. Acquired Datajack. Acquired Sml. Battery. Dropped Wheel. Acquired Terrain Scanner. Acquired 4 matter. Acquired 5 matter. Acquired 8 matter. Acquired 4 matter. Acquired 27 matter. Dropped Ion Engine. Dropped Flight Unit. Dropped Sml. Storage Unit. Acquired Flail. The unstable cave ceiling collapses. Crushed by falling debris. System corrupted: Energy discharge (-50). W-16 Scout sends out distress signal. System corrupted: Matter fused (-7). Map ----- +----------------------------------------------------+ | ?????????????????????????????????????????????????? | | ?????????????????????????????????????????????????? | | ?????????????????????????????????????????????????? | | ?????????????????????????????????????????????????? | | ?????????????????????????????????????????????????? | | ?????????????????????????????????????????????????? | | ?????????????????????????????????????????????????? | | ?????????????????????????????????????????????????? | | #??????????????????????#?????????????????????????? | | #?#######+#####+##????? ?????????????????????????? | | ### ???? ?????????????????????????? | | ???? ?????????????????????????? | | ### ???? ?????????????????????????? | | #?# ####+#########+## ?????????????????????????? | | #?# #????????# # ?????????????????????????? | | ??# #????????# # #????????????????????????? | | ??# #????????# # #????????????????????????? | | ??# #????????# # #????????????????????????? | | ??# #????????# # #????????????????????????? | | ??# #????????# # #????????????????????????? | | ??# #???????## # #????????????????????????? | | ??# #??????##; # #????????????????????????? | | ??# #?????## # # #????????????????????????? | | ??# #????## ## # #????????????????????????? | | ??# #???## #########; ###??????????????????????? | | ??# #??## ##??????# @#??????????????????????? | | ??# #?## ##???????# s ???????????????????? | | ??# ######????????# s ???????????????? | | ??#=*=! ##?????????# s ???????????? | | ??#!! /[[#??????????# ### ####??????????? | | ??#!!//[[#??????????#######?? w #?????????????? | | ??########????????????????????[]][[#?????????????? | | ???????????????????????????????]][[#?????????????? | | ????????????????????????????????####?????????????? | | ?????????????????????????????????????????????????? | | ?????????????????????????????????????????????????? | | ?????????????????????????????????????????????????? | | ?????????????????????????????????????????????????? | | | | | | | | | | | | | | | | | | | | | | | | | +----------------------------------------------------+ Best States ------------- Heat Dissipation 25 Energy Generation 10 Energy Capacity 250 Matter Stores 300 Matter Capacity 300 Sight Range 16 Terrain Scan Density 10 Evasion (%) 62 Item Schematics ----------------- None Robot Schematics ------------------ None Fabricated ------------ Nothing Repaired ---------- Nothing Studied --------- None Alien Tech Used ----------------- None Achievements -------------- None Challenges ------------ None Game ------ Seed ConcussiveNeutrinoDisplacer Manual? 0 Play Time 00:12:25 Cumulative 12.2 hours Start 2026.07.08 @ 19:35:04 End 2026.07.08 @ 19:45:28 Sessions 1 Manual Loads 0 Difficulty Rogue Special Mode None Game No. 13 Rogue 13 Adventurer 0 Explorer 0 Win Type - Total 0 Types 0/0/0/0/0/0/0/0/0/0 Lore% 8 Gallery% 12 Achievement% 12 Wizard Run 0 Options --------- Layout 1 ASCII 0 Keyboard 0 Movement Mouse Keybinds 0 Fullscreen 1 Font 18/SmallcapsGlow Map View 51x41 Zoom Use 0% Tactical HUD 0 Map Filters NONE Filters NONE Steam 1 RUN: 0b15f1e0-ed64-46e8-a916-3228d8af5aa2